bitfinex-derivatives/quotes_BTCF0:USTF0_20240905
["timestamp","ask_amount","ask_price","bid_price","bid_amount"]
[1725555756315,0.01075246,56457.0,56456.0,0.093568]
[1725555756718,0.01075246,56457.0,56456.0,0.089568]
[1725555757325,0.01075246,56457.0,56456.0,0.100568]
[1725555758423,0.01075246,56457.0,56456.0,0.098568]
[1725555759420,0.01075246,56457.0,56456.0,0.089568]
[1725555760330,0.01075246,56457.0,56456.0,0.088568]
[1725555760931,0.088569,56456.0,56454.0,0.088571]
[1725555761124,0.312,56455.0,56454.0,0.088571]
[1725555761829,0.102,56455.0,56454.0,0.088571]
[1725555762227,0.102,56455.0,56454.0,0.089571]
[1725555762417,0.102,56455.0,56454.0,0.001]
[1725555762927,0.002,56455.0,56454.0,0.088572]
[1725555763123,0.002,56455.0,56454.0,0.299572]
[1725555763423,0.01106489,56455.0,56454.0,0.178144]
[1725555763623,0.002,56455.0,56454.0,0.178144]
[1725555763819,0.002,56455.0,56454.0,0.181144]
[1725555764625,0.002,56455.0,56454.0,0.180144]
[1725555765021,0.002,56455.0,56454.0,0.178144]
[1725555765221,0.002,56455.0,56454.0,0.089572]
[1725555765423,0.002,56455.0,56454.0,0.179144]
[1725555766632,0.002,56455.0,56454.0,0.181144]
[1725555766822,0.002,56455.0,56454.0,0.092572]
[1725555769226,0.30057,56455.0,56454.0,0.004]
[1725555769426,0.38914,56455.0,56454.0,0.004]
[1725555769926,0.212,56455.0,56454.0,0.092572]
[1725555771029,0.212,56455.0,56454.0,0.004]
[1725555771530,0.30057,56455.0,56454.0,0.004]
[1725555772836,0.212,56455.0,56454.0,0.092572]
[1725555776828,0.002,56455.0,56454.0,0.092572]
[1725555777031,0.002,56455.0,56454.0,1.592572]
[1725555777732,0.212,56455.0,56454.0,1.592572]
[1725555780438,0.212,56455.0,56454.0,0.092572]
[1725555780640,0.30057,56455.0,56454.0,0.004]
[1725555780834,0.088579,56449.0,56448.0,0.00026592]
[1725555781038,0.5708,56449.0,56435.0,0.0041]
[1725555781344,0.088602,56435.0,56429.0,0.0041]
[1725555781541,0.21,56430.0,56429.0,0.088611]
[1725555781741,0.01107463,56430.0,56429.0,0.088611]
[1725555781933,0.21907463,56430.0,56429.0,0.088611]
[1725555782742,0.21,56430.0,56429.0,0.088611]
[1725555782943,0.21888846,56430.0,56429.0,0.088611]
[1725555784143,0.21,56430.0,56429.0,0.088611]
[1725555784340,0.21,56430.0,56429.0,0.102611]
[1725555784547,0.21,56430.0,56429.0,0.116611]
[1725555785158,0.21,56433.0,56429.0,0.028]
[1725555785532,0.21,56433.0,56432.0,0.088606]
[1725555787143,0.21,56433.0,56429.0,0.028]
[1725555787342,0.212,56430.0,56429.0,0.116611]
[1725555787542,0.22077425,56430.0,56429.0,0.116611]
[1725555787739,0.20677425,56430.0,56429.0,0.102611]
[1725555788243,0.01077425,56430.0,56429.0,0.088611]
[1725555788643,0.01077425,56430.0,56429.0,0.102611]
[1725555789444,0.002,56430.0,56429.0,0.102611]
[1725555789643,0.01097558,56430.0,56429.0,0.102611]
[1725555790238,0.01297558,56430.0,56429.0,0.115611]
[1725555790442,0.004,56430.0,56429.0,0.204222]
[1725555791537,0.01266604,56430.0,56429.0,0.115611]
[1725555791740,0.004,56430.0,56429.0,0.115611]
[1725555792332,0.01286205,56430.0,56429.0,0.115611]
[1725555792537,0.004,56430.0,56429.0,0.115611]
[1725555792737,0.373686,56430.0,56429.0,0.027]
[1725555793039,1.162018,56430.0,56429.0,0.027]
[1725555793240,0.088611,56429.0,56424.0,0.00026592]
[1725555793439,0.3608,56425.0,56416.0,0.0041]
[1725555793645,0.3608,56425.0,56411.0,0.3608]
[1725555793646,0.002,56417.0,56411.0,0.3608]
[1725555793842,0.212,56412.0,56411.0,0.449439]
[1725555794047,0.21,56412.0,56411.0,0.449439]
[1725555795146,0.001,56412.0,56411.0,0.460439]
[1725555795349,0.002,56412.0,56411.0,0.469439]
[1725555796343,0.002,56412.0,56411.0,0.108639]
[1725555796945,0.24171227,56412.0,56411.0,0.108639]
[1725555797254,0.212,56412.0,56411.0,0.012]
[1725555797436,1.3438,56412.0,56406.0,0.00026592]
[1725555797642,0.5728,56407.0,56406.0,0.00026592]
[1725555799350,0.5738,56407.0,56406.0,0.00026592]
[1725555800752,0.5738,56407.0,56406.0,0.08891292]
[1725555801249,1.194285,56407.0,56406.0,0.00026592]
[1725555801447,1.70664,56407.0,56406.0,0.00026592]
[1725555801635,1.10664,56407.0,56406.0,0.00026592]
[1725555802041,1.73628398,56407.0,56397.0,0.0041]
[1725555802243,0.3608,56398.0,56392.0,0.28224125]
[1725555802441,0.3608,56398.0,56391.0,0.0041]
[1725555802442,0.3608,56393.0,56383.0,0.0041]
[1725555802647,0.212,56384.0,56383.0,0.088683]
[1725555804447,0.212,56384.0,56378.0,0.00026592]
[1725555804848,0.5708,56387.0,56378.0,0.00026592]
[1725555805354,0.002,56384.0,56383.0,0.088683]
[1725555805546,0.212,56384.0,56383.0,0.088683]
[1725555805740,0.211,56384.0,56383.0,0.088683]
[1725555805943,0.212,56384.0,56383.0,0.088683]
[1725555806352,0.002,56384.0,56383.0,0.088683]
[1725555807550,0.001,56384.0,56383.0,0.088683]
[1725555807748,0.34840408,56387.0,56378.0,0.05272039]
[1725555807949,0.002,56379.0,56378.0,0.14141139]
[1725555808151,0.001,56384.0,56383.0,0.088683]
[1725555808544,0.002,56384.0,56383.0,0.088683]
[1725555809243,0.001,56384.0,56383.0,0.088683]
[1725555809645,0.001,56384.0,56383.0,0.177366]
[1725555809851,0.001,56384.0,56383.0,0.088683]
[1725555809852,0.002,56384.0,56383.0,0.088683]
[1725555810155,0.002,56384.0,56383.0,0.14069622]
[1725555810656,0.002,56384.0,56383.0,0.088683]
[1725555810851,0.002,56384.0,56383.0,0.14069622]
[1725555811053,0.212,56384.0,56383.0,0.088683]
[1725555812557,0.212,56384.0,56380.0,0.088688]
[1725555812858,0.002,56381.0,56380.0,0.088688]
[1725555813056,0.01102755,56381.0,56380.0,0.14070122]
[1725555814254,0.09971355,56381.0,56380.0,0.05203866]
[1725555814553,0.09971355,56381.0,56379.0,0.05203866]
[1725555814554,0.01102755,56381.0,56379.0,0.05203866]
[1725555814749,0.212,56380.0,56379.0,0.05203866]
[1725555815260,0.212,56380.0,56378.0,0.08895492]
[1725555815447,0.002,56379.0,56378.0,0.08895492]
[1725555815646,0.002,56379.0,56378.0,0.17764592]
[1725555815846,0.03128909,56381.0,56380.0,0.088688]
[1725555816046,0.03128909,56381.0,56380.0,0.836864]
[1725555816350,0.001,56381.0,56380.0,0.836864]
[1725555816550,0.00026592,56389.0,56388.0,0.088675]
[1725555817059,0.03044164,56389.0,56388.0,0.088675]
[1725555817463,0.03044164,56389.0,56388.0,1.64073336]
[1725555817960,0.03044164,56389.0,56388.0,1.588675]
[1725555818156,0.03044164,56389.0,56388.0,1.64073336]
[1725555818355,0.03044164,56389.0,56388.0,1.588675]
[1725555818556,0.03044164,56389.0,56388.0,1.64073336]
[1725555819256,0.56248164,56389.0,56388.0,1.5]
[1725555819457,1.16248164,56389.0,56388.0,1.5]
[1725555819665,0.56248164,56389.0,56388.0,1.5]
[1725555819858,0.03044164,56389.0,56388.0,1.5]
[1725555820157,1.25115564,56389.0,56388.0,1.55211819]
[1725555820366,0.56248164,56389.0,56388.0,1.55211819]
[1725555820659,0.56248164,56389.0,56388.0,1.5521439]
[1725555820862,0.56248164,56389.0,56388.0,1.5]
[1725555821466,0.56248164,56389.0,56387.0,0.06938064]
[1725555821659,0.212,56388.0,56387.0,0.15805764]
[1725555821854,0.212,56388.0,56387.0,1.588677]
[1725555822961,0.5728,56388.0,56387.0,1.588677]
[1725555823157,0.212,56388.0,56387.0,1.588677]
[1725555823361,0.212,56388.0,56387.0,1.5]
[1725555823555,0.300675,56388.0,56387.0,1.5]
[1725555823952,0.088681,56385.0,56378.0,0.00026592]
[1725555824157,0.5728,56379.0,56378.0,0.08895692]
[1725555824355,0.58162106,56379.0,56378.0,0.08895692]
[1725555825255,0.58262106,56379.0,56378.0,0.08895692]
[1725555825459,0.3648,56379.0,56378.0,0.08895692]
[1725555826269,0.5748,56379.0,56378.0,0.08895692]
[1725555827671,0.5748,56379.0,56378.0,0.00026592]
[1725555828365,0.5748,56379.0,56378.0,0.08895692]
[1725555829670,0.60475727,56379.0,56378.0,0.00026592]
[1725555830770,0.60475727,56379.0,56378.0,0.13546577]
[1725555831169,0.60475727,56379.0,56378.0,0.24051206]
[1725555831170,0.69344627,56379.0,56378.0,0.24051206]
[1725555831368,0.69344627,56379.0,56378.0,0.13546577]
[1725555831677,0.088697,56374.0,56373.0,0.10504629]
[1725555831861,0.088697,56374.0,56370.0,0.10504629]
[1725555831862,0.5728,56374.0,56370.0,0.10504629]
[1725555832067,0.212,56371.0,56370.0,0.10504629]
[1725555832368,0.21,56371.0,56369.0,0.10504629]
[1725555832761,0.08871,56366.0,56365.0,0.10504629]
[1725555832968,0.088711,56365.0,56364.0,0.00026592]
[1725555833270,0.088718,56361.0,56356.0,0.10504629]
[1725555833465,0.088718,56361.0,56355.0,0.19377329]
[1725555833466,0.212,56357.0,56355.0,0.19377329]
[1725555833671,0.212,56357.0,56356.0,0.088726]
[1725555833967,0.212,56357.0,56356.0,0.19377229]
[1725555834171,0.212,56357.0,56356.0,0.088726]
[1725555834567,0.002,56357.0,56356.0,0.088726]
[1725555834764,0.002,56357.0,56356.0,0.19377229]
[1725555835165,0.212,56357.0,56356.0,0.088726]
[1725555835875,0.212,56357.0,56356.0,1.588726]
[1725555836071,0.213,56357.0,56356.0,1.588726]
[1725555836377,0.214,56357.0,56356.0,1.588726]
[1725555836574,0.214,56357.0,56356.0,0.088726]
[1725555838973,0.5748,56357.0,56356.0,0.088726]
[1725555839171,0.5748,56357.0,56356.0,1.588726]
[1725555840476,0.5748,56357.0,56356.0,1.5]
[1725555840982,0.663524,56357.0,56356.0,1.5]
[1725555841277,0.663524,56357.0,56351.0,0.00026616]
[1725555841471,0.5728,56352.0,56351.0,0.00026616]
[1725555841667,0.5728,56352.0,56351.0,0.08899816]
[1725555842868,0.5738,56352.0,56351.0,0.00026616]
[1725555843571,0.5748,56352.0,56351.0,0.00026616]
[1725555843771,0.663532,56352.0,56351.0,0.00026616]
[1725555844274,1.70716,56352.0,56340.0,0.08875]
[1725555844479,0.3628,56341.0,56340.0,0.08875]
[1725555845188,0.37146649,56341.0,56340.0,0.08875]
[1725555845877,0.30928155,56341.0,56340.0,0.08875]
[1725555846080,0.33959506,56341.0,56340.0,0.08875]
[1725555846277,0.33959506,56341.0,56340.0,0.1410734]
[1725555846467,0.03331351,56341.0,56340.0,0.08875]
[1725555846771,0.00894093,56343.0,56342.0,0.088748]
[1725555846972,0.21,56343.0,56342.0,1.588748]
[1725555847179,0.21877574,56343.0,56342.0,1.64107039]
[1725555847680,0.21,56343.0,56342.0,1.588748]
[1725555848375,0.21,56343.0,56342.0,0.088748]
[1725555848974,0.211,56343.0,56342.0,1.588748]
[1725555849381,0.212,56343.0,56342.0,1.677496]
[1725555849579,0.212,56343.0,56342.0,1.588748]
[1725555850278,0.212,56343.0,56342.0,2.96843705]
[1725555850279,0.001,56343.0,56342.0,2.96843705]
[1725555850481,1e-08,56346.0,56345.0,0.266229]
[1725555850785,1e-08,56346.0,56345.0,0.476229]
[1725555851082,1e-08,56346.0,56345.0,1.608669]
[1725555852171,0.00100001,56346.0,56345.0,1.608669]
[1725555852368,0.00200001,56346.0,56345.0,1.608669]
[1725555852769,0.093517,56362.0,56358.0,0.088722]
[1725555852976,0.36949582,56359.0,56358.0,0.088722]
[1725555854070,0.00026616,56364.0,56363.0,0.088715]
[1725555854773,0.00897563,56364.0,56363.0,0.088715]
[1725555854981,0.00026616,56364.0,56363.0,0.088715]
[1725555855583,0.00896497,56364.0,56363.0,0.088715]
[1725555855779,0.00026616,56364.0,56363.0,1.588715]
[1725555855979,0.00026616,56364.0,56363.0,1.949515]
[1725555855980,0.00126616,56364.0,56363.0,1.949515]
[1725555856374,0.00126616,56364.0,56363.0,1.5]
[1725555856582,0.10457989,56364.0,56363.0,1.5]
[1725555856775,0.63681989,56364.0,56357.0,0.3608]
[1725555856978,0.088726,56356.0,56352.0,0.35397606]
[1725555857183,0.088726,56356.0,56348.0,0.088738]
[1725555857184,0.5708,56353.0,56348.0,0.088738]
[1725555857383,0.5708,56349.0,56345.0,0.088742]
[1725555857580,0.5708,56349.0,56336.0,0.00092]
[1725555857581,0.5728,56346.0,56336.0,0.00092]
[1725555857778,0.5708,56339.0,56338.0,0.088754]
[1725555857977,0.5708,56339.0,56330.0,0.3608]
[1725555857978,0.5708,56339.0,56333.0,0.08893886]
[1725555858174,0.212,56334.0,56333.0,0.08893886]
[1725555859590,0.213,56334.0,56333.0,0.08893886]
[1725555859785,0.24243537,56334.0,56333.0,0.08893886]
[1725555860092,0.24343537,56334.0,56333.0,0.08893886]
[1725555861493,0.03343537,56334.0,56333.0,0.08893886]
[1725555862679,0.004,56334.0,56333.0,0.08893886]
[1725555862884,0.004,56334.0,56333.0,0.25914882]
[1725555863093,0.004,56334.0,56333.0,0.88047082]
[1725555863297,0.004,56334.0,56333.0,0.15864882]
[1725555863490,0.214,56334.0,56333.0,0.15864882]
[1725555863693,0.214,56334.0,56333.0,0.08893886]
[1725555863891,0.214,56334.0,56333.0,1.58893886]
[1725555865888,0.004,56334.0,56333.0,1.58893886]
[1725555866089,0.00026616,56344.0,56343.0,0.088746]
[1725555867287,0.00026616,56344.0,56343.0,0.177492]
[1725555867482,0.00026616,56344.0,56343.0,0.272192]
[1725555867704,0.00888798,56353.0,56343.0,0.272192]
[1725555867705,0.639,56359.0,56358.0,0.088722]
[1725555867894,0.63986177,56359.0,56358.0,0.088722]
[1725555868495,1.17218177,56359.0,56358.0,0.088722]
[1725555868689,1.17218177,56359.0,56355.0,0.088727]
[1725555868892,0.272,56356.0,56355.0,0.088727]
[1725555870200,0.278,56356.0,56355.0,0.088727]
[1725555870386,0.278,56356.0,56353.0,0.00026616]
[1725555870583,0.3628,56354.0,56353.0,0.00026616]
[1725555871298,1.49516,56354.0,56353.0,1e-08]
[1725555871490,0.088735,56351.0,56343.0,0.088745]
[1725555871692,0.6328,56344.0,56333.0,0.0041]
[1725555871892,0.6328,56344.0,56332.0,0.37100425]
[1725555871893,0.272,56335.0,56334.0,0.08876]
[1725555872095,0.27,56335.0,56334.0,0.08876]
[1725555872295,0.27,56335.0,56334.0,1.58876]
[1725555872689,0.27,56335.0,56334.0,1.58707]
[1725555873103,0.271,56335.0,56334.0,1.58707]
[1725555873296,0.272,56335.0,56334.0,1.58707]
[1725555874802,0.03156234,56335.0,56334.0,1.58707]
[1725555876609,0.03156234,56335.0,56334.0,1.58538]
[1725555877309,0.03156234,56335.0,56334.0,1.67414]
[1725555878202,0.03056234,56335.0,56334.0,1.67414]
[1725555878407,0.03156234,56335.0,56334.0,1.67414]
[1725555878899,0.03056234,56335.0,56334.0,1.67414]
[1725555879102,0.03156234,56335.0,56334.0,1.67414]
[1725555880802,0.00026616,56340.0,56334.0,2.63252]
[1725555881000,1e-08,56346.0,56339.0,0.6308]
[1725555881311,1e-08,56346.0,56345.0,0.719543]
[1725555881508,1e-08,56346.0,56345.0,2.751983]
[1725555881809,1e-08,56346.0,56345.0,3.618212]
[1725555882009,1e-08,56358.0,56350.0,0.088735]
[1725555882210,1e-08,56367.0,56366.0,0.17742]
[1725555882406,1e-08,56367.0,56366.0,0.53822]
[1725555882601,1e-08,56367.0,56366.0,1.75836]
[1725555882816,1e-08,56367.0,56366.0,3.25836]
[1725555883504,0.01000001,56367.0,56366.0,3.25836]
[1725555884899,0.02000001,56367.0,56366.0,3.25936]
[1725555885706,0.02000001,56367.0,56366.0,1.95051]
[1725555886710,0.02000001,56367.0,56366.0,2.03922]
[1725555887013,1e-08,56367.0,56366.0,2.57146]
[1725555887716,1e-08,56367.0,56366.0,3.17146]
[1725555887917,1e-08,56367.0,56366.0,3.26017]
[1725555888417,1e-08,56367.0,56366.0,2.03922]
[1725555890020,0.13645044,56367.0,56366.0,1.82075723]
[1725555890719,0.13645044,56367.0,56366.0,1.58971]
[1725555891018,0.07281334,56367.0,56366.0,1.67842]
[1725555892117,0.07281334,56367.0,56366.0,1.58971]
[1725555892615,0.07281334,56367.0,56363.0,0.088714]
[1725555892616,0.088712,56365.0,56363.0,0.088714]
[1725555892816,0.78560289,56367.0,56363.0,0.088715]
[1725555892817,0.15681646,56364.0,56363.0,0.088715]
[1725555893022,0.07482691,56364.0,56363.0,0.088715]
[1725555893218,0.15681646,56364.0,56363.0,0.088715]
[1725555893415,0.07482691,56364.0,56363.0,1.588715]
[1725555893610,0.15681646,56364.0,56363.0,1.67743]
[1725555894019,0.15681646,56364.0,56363.0,1.67843]
[1725555894020,0.16281646,56364.0,56363.0,1.67843]
[1725555894520,0.16281646,56364.0,56363.0,1.589715]
[1725555894723,0.16281646,56364.0,56363.0,1.67843]
[1725555895230,0.16281646,56364.0,56363.0,1.589715]
[1725555896115,0.16881646,56364.0,56363.0,1.590715]
[1725555896619,0.16881646,56364.0,56363.0,0.002]
[1725555896820,0.16881646,56364.0,56363.0,0.090715]
[1725555897324,0.16881646,56364.0,56363.0,0.17943]
[1725555897514,0.16881646,56364.0,56363.0,1.67943]
[1725555897915,0.16881646,56364.0,56363.0,1.590715]
[1725555898115,0.014,56364.0,56363.0,1.590715]
[1725555898325,0.014,56364.0,56363.0,1.67943]
[1725555899524,0.014,56364.0,56363.0,2.038145]
[1725555900118,0.014,56364.0,56363.0,1.978145]
[1725555900321,0.014,56364.0,56363.0,1.67943]
[1725555900924,0.014,56364.0,56363.0,1.590715]
[1725555901323,0.014,56364.0,56363.0,1.67943]
[1725555901915,0.014,56364.0,56363.0,1.768145]
[1725555902325,0.014,56364.0,56363.0,1.67943]
[1725555905724,0.014,56364.0,56363.0,1.590715]
[1725555906028,0.014,56364.0,56363.0,0.002]
[1725555906227,0.102713,56364.0,56363.0,0.002]
[1725555906633,1.234953,56364.0,56363.0,0.002]
[1725555907533,0.014,56364.0,56363.0,0.002]
[1725555907730,0.014,56364.0,56363.0,0.090715]
[1725555910528,0.014,56364.0,56363.0,0.17943]
[1725555910735,0.014,56364.0,56363.0,0.478145]
[1725555911229,0.014,56364.0,56363.0,0.838945]
[1725555911433,0.014,56364.0,56363.0,2.25023]
[1725555911836,0.008,56364.0,56363.0,2.24923]
[1725555912335,0.003,56364.0,56363.0,2.24823]
[1725555912534,0.003,56364.0,56363.0,2.336945]
[1725555912831,0.003,56364.0,56363.0,3.469185]
[1725555913237,0.003,56364.0,56363.0,1.8608]
[1725555913436,0.3638,56364.0,56349.0,0.00046616]
[1725555913737,0.21,56356.0,56349.0,0.00046616]
[1725555913933,0.3608,56358.0,56355.0,0.088727]
[1725555914238,0.3608,56358.0,56357.0,0.088724]
[1725555914827,0.00026616,56363.0,56362.0,0.088716]
[1725555915032,0.21026616,56363.0,56362.0,0.088716]
[1725555915931,0.27026616,56363.0,56362.0,0.088716]
[1725555917639,0.27226616,56363.0,56362.0,0.088716]
[1725555917847,0.27426616,56363.0,56362.0,0.088716]
[1725555918340,0.80654616,56363.0,56352.0,0.00026616]
[1725555918644,0.002,56353.0,56352.0,0.08899816]
[1725555919232,0.002,56353.0,56352.0,0.00026616]
[1725555919838,0.002,56353.0,56352.0,0.08899816]
[1725555920151,0.002,56353.0,56352.0,0.00026616]
[1725555920335,1.22309,56353.0,56352.0,0.00026616]
[1725555920638,1.31182,56353.0,56352.0,0.01926616]
[1725555920840,0.09073,56353.0,56352.0,0.01926616]
[1725555921033,0.12289649,56353.0,56352.0,0.01926616]
[1725555921235,1.25525649,56353.0,56352.0,0.00026616]
[1725555921539,1.25725649,56353.0,56352.0,0.01926616]
[1725555922038,0.65625649,56353.0,56352.0,0.01026616]
[1725555922238,0.65625649,56353.0,56352.0,0.00626616]
[1725555922441,0.65625649,56353.0,56352.0,0.01226616]
[1725555922750,1.25625649,56353.0,56352.0,0.01226616]
[1725555923040,0.12389649,56353.0,56352.0,0.01226616]
[1725555926737,0.03516649,56353.0,56352.0,0.01226616]
[1725555926938,0.03516649,56353.0,56352.0,0.10099816]
[1725555927141,0.003,56353.0,56352.0,1.41082216]
[1725555927441,0.003,56353.0,56352.0,2.91082216]
[1725555927646,0.003,56353.0,56352.0,2.22209016]
[1725555928536,0.003,56353.0,56352.0,1.60099816]
[1725555929240,0.003,56353.0,56352.0,2.73335816]
[1725555929439,0.003,56353.0,56352.0,1.68973016]
[1725555929932,0.003,56353.0,56352.0,1.51226616]
[1725555930547,0.09173,56353.0,56352.0,1.51226616]
[1725555931532,0.003,56353.0,56352.0,1.51226616]
[1725555932641,0.003,56353.0,56352.0,1.60099816]
[1725555933040,1.31282,56353.0,56352.0,1.51226616]
[1725555933240,1.31282,56353.0,56335.0,0.28224125]
[1725555933241,0.08874,56347.0,56335.0,0.28224125]
[1725555933442,0.69173,56353.0,56335.0,0.088758]
[1725555933443,0.6328,56336.0,56335.0,0.088758]
[1725555934453,0.6328,56336.0,56335.0,0.102758]
[1725555935546,0.6328,56336.0,56335.0,0.116758]
[1725555935945,0.6328,56336.0,56335.0,0.028]
[1725555936241,0.6338,56336.0,56335.0,0.024]
[1725555936448,0.6654961,56336.0,56335.0,1.612759]
[1725555936650,0.3954961,56336.0,56335.0,1.612759]
[1725555937151,0.6654961,56336.0,56335.0,1.612759]
[1725555937349,0.6664961,56336.0,56335.0,1.608759]
[1725555941252,0.6664961,56336.0,56335.0,0.108759]
[1725555944159,0.0356961,56336.0,56335.0,0.108759]
[1725555944751,0.0356961,56336.0,56335.0,1.608759]
[1725555944960,0.2456961,56336.0,56335.0,1.608759]
[1725555946245,0.0356961,56336.0,56335.0,1.608759]
[1725555947149,0.2456961,56336.0,56335.0,1.608759]
[1725555949060,0.2456961,56336.0,56335.0,1.697518]
[1725555950152,0.2456961,56336.0,56335.0,1.608759]
[1725555950359,0.2456961,56336.0,56335.0,1.697518]
[1725555950554,0.2456961,56336.0,56335.0,1.689518]
[1725555951156,0.2456961,56336.0,56335.0,1.778277]
[1725555951455,0.0356961,56336.0,56335.0,1.689518]
[1725555953759,0.0356961,56336.0,56335.0,1.74207186]
[1725555958260,0.0356961,56336.0,56335.0,1.689518]
[1725555958461,0.0356961,56336.0,56335.0,1.778277]
[1725555958763,0.004,56336.0,56335.0,1.778277]
[1725555959660,0.004,56336.0,56335.0,1.689518]
[1725555960862,0.004,56336.0,56335.0,1.778277]
[1725555961060,1e-06,56336.0,56335.0,3.209556]
[1725555961757,1e-06,56336.0,56335.0,3.304956]
[1725555962166,1e-06,56336.0,56335.0,3.37485874]
[1725555962366,1.6e-07,56341.0,56340.0,0.355004]
[1725555962557,1.6e-07,56341.0,56340.0,0.97835335]
[1725555962753,1.6e-07,56341.0,56340.0,2.058284]
[1725555963468,1.6e-07,56341.0,56340.0,2.11080541]
[1725555963757,1.6e-07,56341.0,56340.0,0.182502]
[1725555963964,1.6e-07,56341.0,56340.0,0.097751]
[1725555964163,0.08874916,56341.0,56340.0,0.097751]
[1725555964366,0.12072611,56341.0,56340.0,0.097751]
[1725555964565,0.03197711,56341.0,56340.0,0.097751]
[1725555967975,0.12072611,56341.0,56340.0,0.009]
[1725555968179,0.21262611,56341.0,56340.0,0.009]
[1725555968379,0.12387711,56341.0,56340.0,0.009]
[1725555969275,0.03197711,56341.0,56340.0,0.009]
[1725555969587,0.03197711,56341.0,56340.0,0.097751]
[1725555971076,1.6e-07,56341.0,56340.0,1.407733]
[1725555971280,1.6e-07,56341.0,56340.0,1.496484]
[1725555971879,1.6e-07,56341.0,56340.0,2.907733]
[1725555972180,1.6e-07,56341.0,56340.0,1.597751]
[1725555973092,0.03222311,56341.0,56340.0,1.597751]
[1725555973293,1.6e-07,56341.0,56340.0,1.597751]
[1725555973878,1.6e-07,56341.0,56330.0,0.00017786]
[1725555973879,0.088765,56331.0,56330.0,0.00017786]
[1725555974078,0.088765,56331.0,56319.0,0.041998]
[1725555974079,0.7236,56331.0,56319.0,0.041998]
[1725555974282,0.088787,56318.0,56315.0,0.0041]
[1725555974589,0.9436,56320.0,56313.0,0.0041]
[1725555974590,0.214,56316.0,56313.0,0.088793]
[1725555974888,0.5848,56314.0,56304.0,0.0041]
[1725555975091,0.22,56308.0,56307.0,0.088803]
[1725555975789,0.22,56308.0,56303.0,0.000266]
[1725555975994,0.22,56306.0,56305.0,0.088806]
[1725555976189,0.21,56313.0,56304.0,0.011]
[1725555976393,0.22,56310.0,56308.0,0.088801]
[1725555976688,0.5808,56309.0,56308.0,0.088801]
[1725555976994,0.21,56312.0,56311.0,0.088797]
[1725555978085,0.001,56313.0,56312.0,0.088795]
[1725555978277,0.001,56313.0,56312.0,1.588795]
[1725555978483,0.001,56313.0,56312.0,2.721555]
[1725555978678,0.004,56314.0,56313.0,0.088793]
[1725555978880,0.3608,56329.0,56326.0,0.088773]
[1725555979093,0.36172,56329.0,56321.0,0.27]
[1725555979392,0.3608,56336.0,56328.0,0.3608]
[1725555979596,0.45842,56338.0,56337.0,0.088756]
[1725555979984,0.49091793,56338.0,56337.0,0.088756]
[1725555980183,0.49091793,56338.0,56332.0,0.0002664]
[1725555980184,0.49907401,56338.0,56332.0,0.0002664]
[1725555980489,0.3648,56333.0,56332.0,0.0890294]
[1725555980884,0.3648,56333.0,56332.0,1.5890294]
[1725555981280,0.3648,56333.0,56332.0,1.5002664]
[1725555981579,1.85816,56333.0,56332.0,0.0002664]
[1725555981992,0.7256,56333.0,56332.0,0.0890294]
[1725555982193,0.7256,56333.0,56332.0,0.0002664]
[1725555982387,0.7256,56333.0,56321.0,0.004]
[1725555982388,1.94856,56333.0,56321.0,0.004]
[1725555982587,1.94856,56333.0,56315.0,0.093589]
[1725555982588,0.7256,56322.0,56315.0,0.0041]
[1725555982786,0.088792,56314.0,56313.0,0.004]
[1725555982986,0.088792,56314.0,56302.0,0.088811]
[1725555982987,0.088798,56310.0,56302.0,0.088811]
[1725555983186,0.7256,56303.0,56302.0,0.088811]
[1725555983493,0.3608,56305.0,56304.0,0.088808]
[1725555983691,0.3608,56305.0,56304.0,0.177616]
[1725555983888,0.0002664,56308.0,56307.0,0.088803]
[1725555984091,0.0002664,56308.0,56307.0,0.177606]
[1725555984280,0.001,56314.0,56313.0,0.088793]
[1725555984481,0.3608,56317.0,56313.0,1.13272]
[1725555984681,0.004,56322.0,56321.0,0.088781]
[1725555985088,0.004,56322.0,56321.0,0.449581]
[1725555985290,0.005,56322.0,56321.0,0.449581]
[1725555985684,0.005,56322.0,56321.0,0.088781]
[1725555985885,0.005,56322.0,56321.0,1.221421]
[1725555986091,0.005,56322.0,56321.0,2.121421]
[1725555986486,0.0002664,56327.0,56326.0,0.088773]
[1725555986686,4e-07,56327.0,56326.0,1.408346]
[1725555986898,4e-07,56327.0,56326.0,0.538346]
[1725555987191,4e-07,56327.0,56326.0,1.949573]
[1725555988298,4e-07,56327.0,56326.0,1.950573]
[1725555988680,4e-07,56327.0,56326.0,3.441946]
[1725555989090,4e-07,56327.0,56326.0,3.440946]
[1725555989396,4e-07,56327.0,56326.0,3.441946]
[1725555989994,4e-07,56327.0,56326.0,3.530719]
[1725555990893,4e-07,56327.0,56326.0,3.56266377]
[1725555991284,4e-07,56327.0,56326.0,3.530719]
[1725555994197,4e-07,56327.0,56326.0,2.930719]
[1725555994493,4e-07,56327.0,56326.0,2.398119]
[1725555994686,4e-07,56327.0,56326.0,2.930719]
[1725555995288,4e-07,56327.0,56326.0,3.530719]
[1725555996088,4e-07,56327.0,56326.0,3.619492]
[1725555996594,4e-07,56327.0,56326.0,3.67201341]
[1725555997099,4e-07,56327.0,56326.0,3.619492]
[1725555997394,4e-07,56327.0,56326.0,3.68939474]
[1725555997590,4e-07,56327.0,56326.0,3.619492]
[1725555999296,4e-07,56327.0,56326.0,2.486892]
[1725555999494,4e-07,56327.0,56326.0,2.128119]
[1725555999998,4e-07,56327.0,56326.0,2.398119]
[1725556000707,4e-07,56327.0,56326.0,3.530719]